fUST/lending_fUST_20251217
["ID","MTS","AMOUNT","RATE_DAILY","PERIOD"]
[398877654,1765953031829,-240.8659709,0.00015209,2]
[398877655,1765953031838,-693.16897894,0.00015309,2]
[398877656,1765953031846,-177.0,0.00015409,2]
[398877657,1765953031855,-198.08824625,0.00015652,2]
[398877658,1765953031864,-204.0,0.00017409,2]
[398877659,1765953031873,-218.00981873,0.00017444,2]
[398877660,1765953031882,-515.61660439,0.00017444,2]
[398877661,1765953031891,-160.0,0.000178,3]
[398877662,1765953031900,-165.7693751,0.00018006,2]
[398877663,1765953031909,-160.0,0.000189,4]
[398877664,1765953031918,-231.0,0.00019409,2]
[398877665,1765953031927,-2000.0,0.00019505,10]
[398877666,1765953031936,-160.0,0.000196,5]
[398877667,1765953031945,-2472.46625095,0.00019741,2]
[398877668,1765953031954,-4229.68857994,0.00020027,2]
[398877669,1765953031963,-198.25431123,0.00020107,2]
[398877670,1765953031971,-26001.00658324,0.00020108,2]
[398877671,1765953031982,-98869.23378808,0.00020108,2]
[398877672,1765953031993,-272.89695976,0.00020108,2]
[398877673,1765953032004,-5929.62482215,0.00020108,2]
[398877702,1765953037781,-579.00333235,0.00020027,2]
[398877703,1765953037791,-826.08819371,0.00020027,2]
[398877704,1765953037895,-2500.0,0.00020027,2]
[398877705,1765953037907,-5252.6385444,0.00020027,2]
[398877706,1765953037916,-500.0,0.00020105,2]
[398877707,1765953037925,-296.43468146,0.00020105,2]
[398877708,1765953037934,-500.0,0.00020105,2]
[398877709,1765953037943,-405.9589734,0.00020105,2]
[398877710,1765953037951,-484.62394482,0.00020105,2]
[398877711,1765953037960,-500.0,0.00020105,2]
[398877712,1765953037969,-500.0,0.00020105,2]
[398877713,1765953037978,-500.0,0.00020105,2]
[398877714,1765953037986,-500.0,0.00020105,2]
[398877715,1765953037995,-500.0,0.00020105,2]
[398877716,1765953038003,-500.0,0.00020105,2]
[398877717,1765953038012,-410.02710619,0.00020105,2]
[398877718,1765953038021,-500.0,0.00020105,2]
[398877719,1765953038030,-500.0,0.00020105,2]
[398877720,1765953038039,-500.0,0.00020105,2]
[398877721,1765953038048,-548.5297589,0.00020105,2]
[398877722,1765953038058,-18834.24476981,0.00020108,2]
[398877723,1765953038069,-2000.0,0.00020108,2]
[398877724,1765953038080,-3610.35764539,0.00020108,2]
[398877725,1765953038090,-3953.67215326,0.00020108,2]
[398877867,1765953039964,-988.37,0.00020108,2]
[398878081,1765953043016,-2173.89682833,0.00020108,2]
[398878099,1765953661021,3000.0,9.64e-05,2]
[398878100,1765953690086,150.0,9.627e-05,2]
[398878101,1765953766022,150.0,8.722e-05,2]
[398878102,1765953766426,150.0,9.514e-05,2]
[398878103,1765953772854,4200.0,9.64e-05,2]
[398878104,1765953840056,150.0,8.723e-05,2]
[398878105,1765953840185,150.0,9.516e-05,2]
[398878106,1765953913916,150.0,8.726e-05,2]
[398878107,1765953914336,150.0,9.519e-05,2]
[398878108,1765953983651,150.0,8.742e-05,2]
[398878109,1765953984079,150.0,9.537e-05,2]
[398878110,1765954028129,-462.10534614,9.9e-05,2]
[398878111,1765954029757,6000.0,9.64e-05,2]
[398878112,1765954036137,-174.8887972,9.9e-05,2]
[398878113,1765954051482,150.0,8.727e-05,2]
[398878114,1765954051638,150.0,9.521e-05,2]
[398878115,1765954117962,150.0,8.741e-05,2]
[398878116,1765954118408,150.0,9.536e-05,2]
[398878117,1765954163113,-500.0,9.85e-05,2]
[398878118,1765954163134,-4046.93685798,9.9e-05,2]
[398878119,1765954163156,-172.93,0.0001,2]
[398878120,1765954163178,-150.0,0.00010025,2]
[398878121,1765954163200,-500.0,0.0001015,2]
[398878122,1765954163223,-150.0,0.00010307,2]
[398878123,1765954163244,-172.95,0.000108,2]
[398878124,1765954163268,-150.0,0.000111,2]
[398878125,1765954163290,-172.95,0.000116,2]
[398878126,1765954163314,-9.1385584,0.00011893,2]
[398878127,1765954166103,-140.8614416,0.00011893,2]
[398878128,1765954166122,-177.0,0.00012025,2]
[398878129,1765954166143,-172.95,0.000125,2]
[398878130,1765954166163,-300.0,0.00012648,2]
[398878131,1765954166183,-300.0,0.00012649,2]
[398878132,1765954166206,-1200.0,0.00012649,2]
[398878133,1765954166225,-5000.0,0.0001265,2]
[398878134,1765954166251,-456.24405923,0.00012672,2]
[398878135,1765954183731,150.0,8.742e-05,2]
[398878136,1765954184149,150.0,9.537e-05,2]
[398878149,1765954232119,-170.62,0.0001,2]
[398878150,1765954232129,-150.0,0.00010332,2]
[398878151,1765954232138,-170.62,0.000108,2]
[398878152,1765954232151,-150.0,0.00011127,2]
[398878154,1765954232161,-170.62,0.000116,2]
[398878155,1765954232170,-170.62,0.000125,2]
[398878157,1765954232179,-49.24999872,0.00013273,2]
[398878159,1765954232190,-450.75000128,0.00013273,2]
[398878161,1765954232200,-170.62,0.000133,2]
[398878163,1765954232211,-942.621417,0.00013699,2]
[398878165,1765954232222,-763.35080429,0.00013821,2]
[398878166,1765954232230,-204.0,0.00014025,2]
[398878168,1765954232239,-170.62,0.000141,2]
[398878171,1765954232249,-231.0,0.00016025,2]
[398878172,1765954232259,-1587.28752276,0.00017799,3]
[398878175,1765954232271,-412.71247724,0.00017799,3]
[398878177,1765954232281,-258.0,0.00018025,2]
[398878179,1765954232292,-160.0,0.000185,2]
[398878181,1765954232302,-540.50960633,0.00018899,4]
[398878317,1765954238303,-198.08824625,0.0001879,2]
[398878319,1765954238313,-1459.49039367,0.00018899,4]
[398878320,1765954238322,-202.94608861,0.00019048,2]
[398878322,1765954238332,-1000.0,0.00019112,2]
[398878324,1765954238341,-2000.0,0.00019504,10]
[398878326,1765954238350,-151.626,0.00019576,2]
[398878327,1765954238359,-2000.0,0.00019599,5]
[398878329,1765954238368,-160.0,0.000198,7]
[398878331,1765954238378,-331.62488276,0.00019888,2]
[398878332,1765954238387,-514.84070869,0.00019889,2]
[398878334,1765954238397,-1001.0,0.00019889,2]
[398878336,1765954238406,-613.0,0.00019889,2]
[398878338,1765954238415,-846.95479656,0.00019978,2]
[398878339,1765954238425,-160.0,0.0002,10]
[398878341,1765954238434,-285.0,0.00020025,2]
[398878343,1765954238444,-203.7257887,0.00020026,2]
[398878345,1765954238453,-500.0,0.00020027,2]
[398878347,1765954238463,-48267.91407323,0.00020027,2]
[398878348,1765954238475,-3811.66792024,0.00020027,2]
[398878349,1765954238486,-27128.20096962,0.00020027,2]
[398878350,1765954238496,-10351.22822179,0.00020027,2]
[398878351,1765954238507,-861.4296,0.00020027,2]
[398878352,1765954238519,-2196.29875058,0.00020027,2]
[398878551,1765954243160,-1433.08048229,0.00020027,2]
[398878553,1765954250710,150.0,8.716e-05,2]
[398878554,1765954250863,150.0,9.508e-05,2]
[398878555,1765954319645,150.0,8.671e-05,2]
[398878556,1765954320076,150.0,9.459e-05,2]
[398878557,1765954394615,150.0,7.879e-05,2]
[398878558,1765954395031,150.0,8.595e-05,2]
[398878559,1765954395461,160.2,9.311e-05,2]
[398878560,1765954469216,150.0,7.879e-05,2]
[398878561,1765954469633,150.0,8.595e-05,2]
[398878562,1765954470084,150.0,9.312e-05,2]
[398878563,1765954549048,150.0,7.863e-05,2]
[398878564,1765954549443,150.0,8.578e-05,2]
[398878565,1765954549865,150.0,9.293e-05,2]
[398878570,1765954626011,150.0,7.866e-05,2]
[398878571,1765954626432,150.0,8.581e-05,2]
[398878572,1765954626878,150.0,9.296e-05,2]
[398878575,1765954703431,150.0,7.838e-05,2]
[398878576,1765954703847,150.0,8.55e-05,2]
[398878577,1765954704296,150.0,9.263e-05,2]
[398878578,1765954777118,150.0,8.193e-05,2]
[398878579,1765954778008,150.0,8.938e-05,2]
[398878584,1765954850538,150.0,8.184e-05,2]
[398878585,1765954850986,150.0,8.928e-05,2]
[398878586,1765954866159,5000.0,9.64e-05,2]
[398878587,1765954920970,150.0,8.19e-05,2]
[398878588,1765954921369,150.0,8.934e-05,2]
[398878589,1765954989696,150.0,8.19e-05,2]
[398878590,1765954990100,150.0,8.934e-05,2]
[398878591,1765955057901,150.0,7.953e-05,2]
[398878592,1765955058327,150.0,8.677e-05,2]
[398878593,1765955059247,150.0,9.4e-05,2]
[398878596,1765955127142,150.0,8.168e-05,2]
[398878597,1765955127574,150.0,8.911e-05,2]
[398878598,1765955193304,150.0,8.211e-05,2]
[398878599,1765955354139,-556.0,9.683e-05,2]
[398878600,1765955354161,-324.8688294,9.742e-05,2]
[398878601,1765955354181,-383.34521869,0.00011742,2]
[398878602,1765955354200,-235.95778404,0.00013,2]
[398878818,1765955440538,-66.04221596,0.00013,2]
[398878819,1765955440547,-604.0,0.00013,2]
[398878820,1765955440556,-300.0,0.00013272,2]
[398878821,1765955440566,-503.52832888,0.00013273,2]
[398878822,1765955440575,-527.98482553,0.00013273,2]
[398878823,1765955440584,-443.91652653,0.00013273,2]
[398878824,1765955440593,-500.0,0.00013273,2]
[398878825,1765955440603,-500.0,0.00013273,2]
[398878826,1765955440611,-590.56455459,0.00013273,2]
[398878827,1765955440623,-26.37944881,0.00013273,2]
[398878828,1765955440633,-185.35188631,0.00013273,2]
[398878829,1765955440642,-697.64783108,0.00013273,2]
[398878830,1765955440653,-197.71308359,0.00013273,2]
[398878831,1765955440662,-68.08363661,0.00013273,2]
[398878863,1765955443846,-431.91636339,0.00013273,2]
[398878865,1765955443857,-500.0,0.00013273,2]
[398878867,1765955443867,-441.82160798,0.00013742,2]
[398878869,1765955443877,-500.0,0.00013821,2]
[398878871,1765955443886,-198.08824625,0.00015688,2]
[398878873,1765955443896,-500.29799727,0.00015742,2]
[398878875,1765955443905,-399.48067512,0.0001758,2]
[398878877,1765955443914,-558.77438656,0.00017742,2]
[398878879,1765955443923,-2000.0,0.00017798,3]
[398878881,1765955443932,-2000.0,0.00018898,4]
[398878883,1765955443941,-616.0099428,0.00018986,2]
[398878885,1765955443950,-276.19533382,0.00019,2]
[398878887,1765955443959,-168.76630165,0.00019472,2]
[398878889,1765955443968,-500.0,0.00019472,2]
[398878891,1765955443977,-635.59923599,0.00019472,2]
[398878893,1765955443986,-500.0,0.00019472,2]
[398878895,1765955443995,-500.0,0.00019472,2]
[398878897,1765955444004,-500.0,0.00019472,2]
[398878899,1765955444013,-500.0,0.00019472,2]
[398878901,1765955444023,-500.0,0.00019472,2]
[398878903,1765955444031,-500.0,0.00019472,2]
[398878905,1765955444041,-500.0,0.00019472,2]
[398878907,1765955444051,-1001.0,0.00019474,2]
[398878909,1765955444059,-514.84070869,0.00019508,2]
[398878911,1765955444068,-1000.0,0.00019508,2]
[398878913,1765955444077,-1000.0,0.00019508,2]
[398878915,1765955444087,-1000.0,0.00019508,2]
[398878917,1765955444095,-360.84136862,0.00019508,2]
[398878919,1765955444107,-639.15863138,0.00019508,2]
[398878921,1765955444116,-560.84136862,0.00019508,2]
[398879008,1765955446522,-439.15863138,0.00019508,2]
[398879010,1765955446532,-1161.02300745,0.0001952,2]
[398879013,1765955446543,-771.4533225,0.0001952,2]
[398879015,1765955446554,-642.51820702,0.0001952,2]
[398879025,1765956171900,150.0,8.78e-05,2]
[398879026,1765956172283,150.0,9.578e-05,2]
[398879027,1765956237725,150.0,8.777e-05,2]
[398879028,1765956238163,150.0,9.574e-05,2]
[398879029,1765956304790,150.0,8.888e-05,2]
[398879030,1765956370133,150.0,8.866e-05,2]
[398879031,1765956391890,493.3105025,9.64e-05,2]
[398879032,1765956404116,-150.0,9.696e-05,2]
[398879033,1765956404143,-150.0,0.00010478,2]
[398879034,1765956404170,-53.82423985,0.00011283,2]
[398879035,1765956431095,-96.17576015,0.00011283,2]
[398879036,1765956431120,-73.6712725,0.00012089,2]
[398879037,1765956438239,150.0,8.864e-05,2]
[398879038,1765956505488,150.0,8.873e-05,2]
[398879039,1765956555082,-3108.47559966,0.000114,2]
[398879040,1765956563096,-169.18672859,0.000114,2]
[398879065,1765956632429,-152.83,0.0001,2]
[398879067,1765956632439,-152.83,0.0001,2]
[398879069,1765956632448,-284.0642838,0.000105,2]
[398879071,1765956632458,-152.83,0.00011,2]
[398879073,1765956632468,-23.99903777,0.000114,2]
[398879075,1765956632479,-152.83,0.000121,2]
[398879077,1765956632487,-335.19585488,0.000125,2]
[398879079,1765956632496,-152.83,0.000131,2]
[398879080,1765956632505,-375.0,0.00013272,2]
[398879082,1765956632514,-500.0,0.00013273,2]
[398879084,1765956632524,-563.94696801,0.00013273,2]
[398879086,1765956632533,-504.04940841,0.00013273,2]
[398879088,1765956632542,-486.60067522,0.00013273,2]
[398879090,1765956632551,-500.0,0.00013273,2]
[398879092,1765956632560,-505.13557817,0.00013273,2]
[398879094,1765956632570,-160.28,0.00013566,2]
[398879096,1765956632579,-300.0,0.00013698,2]
[398879098,1765956632588,-895.490346,0.00013699,2]
[398879100,1765956632598,-386.32742596,0.000145,2]
[398879101,1765956632607,-300.0,0.00015011,2]
[398879103,1765956632616,-437.45899705,0.000165,2]
[398879105,1765956632627,-2000.0,0.00017797,3]
[398879107,1765956632637,-193.10868854,0.00018074,2]
[398879109,1765956632646,-462.1053461,0.00018108,2]
[398879111,1765956632655,-488.59056813,0.000185,2]
[398879113,1765956632664,-198.08824625,0.00018572,2]
[398879114,1765956632673,-2000.0,0.00018897,4]
[398879115,1765956632683,-1001.0,0.00019308,2]
[398879116,1765956632693,-401.0,0.00019308,2]
[398879117,1765956632702,-2472.46625095,0.00019312,2]
[398879118,1765956632710,-500.0,0.00019499,2]
[398879119,1765956632719,-500.0,0.00019499,2]
[398879120,1765956632728,-500.0,0.00019499,2]
[398879121,1765956632737,-372.71013597,0.00019499,2]
[398879122,1765956632746,-303.60631091,0.00019499,2]
[398879123,1765956632755,-475.8525031,0.00019499,2]
[398879124,1765956632763,-500.0,0.00019499,2]
[398879125,1765956632772,-5000.0,0.000195,2]
[398879126,1765956632781,-2000.0,0.00019519,2]
[398879127,1765956632791,-7425.00546303,0.0001952,2]
[398879128,1765956632799,-756.5,0.00019606,5]
[398879129,1765956632808,-286.02937139,0.00019622,2]
[398879130,1765956632817,-500.0,0.00019727,5]
[398879131,1765956632826,-161.079,0.00019737,2]
[398879132,1765956632835,-514.84070869,0.00019815,2]
[398879133,1765956632844,-225.09233531,0.00019826,2]
[398879134,1765956632853,-6592.7993337,0.00019827,2]
[398879135,1765956632864,-236871.66611863,0.00019827,2]
[398879136,1765956632875,-670.36515537,0.00019827,2]
[398879137,1765956632885,-92222.50480687,0.00019827,2]
[398879138,1765956632895,-334.45923056,0.00019827,2]
[398879139,1765956632906,-996.96787019,0.00019827,2]
[398879179,1765956638741,-2529.46607915,0.00019827,2]
[398879181,1765956638752,-3665.11543935,0.00019827,2]
[398879183,1765956638763,-1024.6242914,0.00019827,2]
[398879185,1765956638774,-24511.29784439,0.00019827,2]
[398879187,1765956638784,-4295.00459402,0.00019827,2]
[398879189,1765956638795,-11676.91243279,0.00019827,2]
[398879192,1765956638806,-1117.63657693,0.00019827,2]
[398879194,1765956638817,-1900.13446402,0.00019827,2]
[398879196,1765956638827,-968.75395028,0.00019827,2]
[398879258,1765956640658,-2620.57880884,0.00019827,2]
[398879259,1765956640669,-2502.35060588,0.00019827,2]
[398879260,1765956640681,-4606.55837794,0.00019827,2]
[398879261,1765956640691,-454.58,0.00019827,2]
[398879269,1765956643625,-680.29172054,0.00019827,2]
[398879270,1765956643636,-497.40738638,0.00019827,2]
[398879271,1765956643646,-1617.48,0.00019827,2]
[398879272,1765956700384,150.0,9.021e-05,2]
[398879273,1765956777020,150.0,7.892e-05,2]
[398879274,1765956777431,150.0,8.61e-05,2]
[398879275,1765956777847,150.0,9.327e-05,2]
[398879276,1765956851000,150.0,7.913e-05,2]
[398879277,1765956851397,150.0,8.633e-05,2]
[398879278,1765956852016,150.0,9.352e-05,2]
[398879279,1765956926556,150.0,7.916e-05,2]
[398879280,1765956926993,150.0,8.636e-05,2]
[398879281,1765956927409,150.0,9.356e-05,2]
[398879282,1765957001394,150.0,7.922e-05,2]
[398879283,1765957001823,150.0,8.642e-05,2]
[398879284,1765957002222,207.13,9.363e-05,2]
[398879285,1765957084025,150.0,7.928e-05,2]
[398879286,1765957084426,150.0,8.649e-05,2]
[398879287,1765957084849,187.77,9.37e-05,2]
[398879290,1765957159334,150.0,7.301e-05,2]
[398879291,1765957159827,150.0,7.964e-05,2]
[398879292,1765957160293,169.15,8.628e-05,2]
[398879293,1765957160702,225.53,9.292e-05,2]
[398879294,1765957235341,150.0,7.286e-05,2]
[398879295,1765957235740,150.0,7.948e-05,2]
[398879296,1765957236136,150.0,8.61e-05,2]
[398879297,1765957236562,190.16,9.273e-05,2]
[398879298,1765957308321,150.0,7.988e-05,2]
[398879299,1765957308796,150.0,8.715e-05,2]
[398879300,1765957309647,150.0,9.441e-05,2]
[398879301,1765957385904,150.0,7.986e-05,2]
[398879302,1765957386216,150.0,8.712e-05,2]
[398879303,1765957386626,150.0,9.438e-05,2]
[398879304,1765957430840,802.96474738,9.606e-05,2]
[398879305,1765957458447,150.0,8.342e-05,2]
[398879306,1765957458877,150.0,9.101e-05,2]
[398879307,1765957530125,150.0,8.342e-05,2]
[398879308,1765957530532,150.0,9.1e-05,2]
[398879309,1765957600745,150.0,8.374e-05,2]
[398879310,1765957601151,150.0,9.135e-05,2]
[398879311,1765957629130,-245.96474738,9.654e-05,2]
[398879312,1765957629150,-245.96474738,9.703e-05,2]
[398879313,1765957629181,-557.0,9.801e-05,2]
[398879314,1765957629206,-150.0,9.859e-05,2]
[398879315,1765957629228,-154.79,0.0001,2]
[398879316,1765957629252,-150.0,0.00010618,2]
[398879317,1765957629276,-150.0,0.00011376,2]
[398879318,1765957629295,-238.69383253,0.00011551,2]
[398879319,1765957629317,-290.23840191,0.00011703,2]
[398879320,1765957629341,-150.0,0.00012133,2]
[398879321,1765957629363,-150.0,0.00012942,2]
[398879322,1765957629383,-463.73643797,0.00013273,2]
[398879323,1765957629403,-172.63951897,0.00013273,2]
[398879324,1765957629423,-505.59118412,0.00013699,2]
[398879325,1765957629443,-334.51205644,0.00013703,2]
[398879326,1765957629466,-162.42,0.00013703,2]
[398879327,1765957629487,-1000.0,0.00013946,2]
[398879328,1765957629510,-267.7459688,0.00014099,2]
[398879329,1765957645408,-462.10534614,0.00013958,2]
[398879330,1765957669529,150.0,8.357e-05,2]
[398879331,1765957670391,150.0,9.117e-05,2]
[398879332,1765957736738,150.0,7.762e-05,2]
[398879333,1765957747089,-154.79,0.0001,2]
[398879334,1765957747110,-154.79,0.000104,2]
[398879335,1765957747131,-154.79,0.000108,2]
[398879336,1765957747153,-154.79,0.000112,2]
[398879337,1765957747177,-122.00286919,0.000116,2]
[398879352,1765957831588,-179.19,9.9e-05,2]
[398879353,1765957831598,-179.19,0.0001,2]
[398879354,1765957831607,-179.19,0.00011,2]
[398879355,1765957831616,-179.19,0.000121,2]
[398879356,1765957831625,-179.19,0.000131,2]
[398879357,1765957831634,-179.19,0.000141,2]
[398879358,1765957831644,-238.69383253,0.00014413,2]
[398879359,1765957831653,-378.78571096,0.00015703,2]
[398879360,1765957831663,-198.08824625,0.00015773,2]
[398879361,1765957831672,-238.69383253,0.00017275,2]
[398879362,1765957831682,-423.05936549,0.00017703,2]
[398879363,1765957831691,-2000.0,0.00017796,3]
[398879364,1765957831700,-1200.0,0.00018894,2]
[398879365,1765957831710,-300.0,0.00018895,2]
[398879366,1765957831719,-300.0,0.00018895,2]
[398879367,1765957831728,-205.0,0.00018895,2]
[398879368,1765957831738,-2000.0,0.00018896,4]
[398879369,1765957831747,-1001.0,0.00019017,2]
[398879370,1765957831756,-5197.46988927,0.00019536,2]
[398879371,1765957831765,-183.11210111,0.00019537,2]
[398879372,1765957831776,-378.16007406,0.00019537,2]
[398879373,1765957831787,-1001.0,0.00019565,2]
[398879374,1765957831797,-157.56463471,0.00019626,2]
[398879375,1765957831806,-62754.28301935,0.00019627,2]
[398879376,1765957831818,-96157.16012709,0.00019627,2]
[398879377,1765957831829,-285.76095976,0.00019627,2]
[398879378,1765957831840,-645.85939626,0.00019627,2]
[398879379,1765957831856,-610.94909855,0.00019627,2]
[398879380,1765957831867,-110287.63218208,0.00019627,2]
[398879394,1765957837648,-179.19,9.801e-05,2]
[398879395,1765957837658,-163.98361146,0.00019625,2]
[398879396,1765957837667,-500.0,0.00019625,2]
[398879397,1765957837675,-191.2210402,0.00019625,2]
[398879398,1765957837685,-107.74271342,0.00019627,2]
[398879399,1765957837697,-1567.3008456,0.00019627,2]
[398879400,1765957837709,-617.98410226,0.00019627,2]
[398879401,1765957837721,-1373.14626632,0.00019627,2]
[398879402,1765957837732,-80260.71439664,0.00019627,2]
[398879403,1765957837743,-17246.27715036,0.00019627,2]
[398879404,1765957837753,-56903.97589121,0.00019627,2]
[398879405,1765957837764,-23241.93743262,0.00019627,2]
[398879406,1765957837774,-32987.89925653,0.00019627,2]
[398879407,1765957837785,-19227.72316444,0.00019627,2]
[398879408,1765957837797,-16861.96021824,0.00019627,2]
[398879409,1765957837809,-3335.44602688,0.00019627,2]
[398879410,1765957837820,-343.48819371,0.00019627,2]
[398879411,1765957837831,-2000.0,0.00019627,2]
[398879414,1765957839880,-229.78157057,0.00019525,2]
[398879415,1765957839891,-1204.14086667,0.00019627,2]
[398879417,1765957843662,-229.78157057,0.00019528,2]
[398879418,1765957843671,-229.78157057,0.00019531,2]
[398879419,1765957843680,-229.78157057,0.00019533,2]
[398879420,1765957843689,-229.78157057,0.00019536,2]
[398879421,1765957843698,-16275.17896089,0.00019627,2]
[398879422,1765957843716,-9095.95,0.00019627,2]
[398879431,1765957846044,-40219.90011786,0.00019627,2]
[398879432,1765957846253,-39.73645538,0.00019627,2]
[398879434,1765958840131,-219.86944473,0.00018558,2]
[398879435,1765958840151,-198.08824625,0.00018821,2]
[398879436,1765958840171,-219.86944473,0.00018935,2]
[398879437,1765958840190,-704.0,0.00019035,2]
[398879438,1765958840209,-212.0,0.00019178,10]
[398879439,1765958840228,-500.0,0.00019198,5]
[398879440,1765958840247,-320.845052,0.000192,2]
[398879441,1765958840267,-300.0,0.00019526,2]
[398879442,1765958840286,-4371.75691609,0.00019527,2]
[398879448,1765958972129,150.0,9.093e-05,2]
[398879450,1765959032201,-254.26799872,9.821e-05,2]
[398879451,1765959032306,-454.73200128,9.821e-05,2]
[398879452,1765959032317,-150.0,9.92e-05,2]
[398879453,1765959032327,-163.6846135,9.92e-05,2]
[398879511,1765959038136,-395.3153865,9.92e-05,2]
[398879513,1765959038146,-150.0,0.00010746,2]
[398879515,1765959038155,-150.0,0.00011573,2]
[398879517,1765959038164,-2000.0,0.00017795,3]
[398879519,1765959038174,-2000.0,0.00018895,4]
[398879521,1765959038182,-260.53413136,0.00019177,10]
[398879523,1765959038194,-1739.46586864,0.00019177,10]
[398879525,1765959038203,-1200.0,0.00019196,2]
[398879527,1765959038213,-1275.53015737,0.00019197,5]
[398879529,1765959038224,-724.46984263,0.00019197,5]
[398879531,1765959038234,-300.0,0.00019299,2]
[398879533,1765959038244,-300.0,0.00019299,2]
[398879535,1765959038253,-4000.0,0.000193,2]
[398879537,1765959038262,-1072.08212785,0.000193,2]
[398879539,1765959038273,-673.35,0.000193,2]
[398879542,1765959038285,-2527.77638842,0.000193,2]
[398879544,1765959038295,-1884.26239817,0.000194,2]
[398879548,1765959039542,150.0,8.48e-05,2]
[398879552,1765959039949,150.0,9.251e-05,2]
[398879553,1765959040208,-1815.73760183,0.000194,2]
[398879554,1765959040217,-215.47205584,0.0001943,2]
[398879555,1765959040227,-17439.29247436,0.00019527,2]
[398879556,1765959040238,-3435.90441041,0.00019527,2]
[398879557,1765959040249,-2566.07621776,0.00019527,2]
[398879585,1765959045415,-150.0,0.00010022,2]
[398879586,1765959045425,-5853.2929623,0.00019527,2]
[398879587,1765959045436,-1053.98,0.00019527,2]
[398879602,1765959046319,-150.0,9.922e-05,2]
[398879603,1765959046328,-528.92998736,0.00019527,2]
[398879605,1765959106424,150.0,8.987e-05,2]
[398879606,1765959173710,150.0,8.976e-05,2]
[398879608,1765959239711,150.0,8.416e-05,2]
[398879609,1765959240144,150.0,9.181e-05,2]
[398879610,1765959245720,150.0,9.609e-05,2]
[398879611,1765959260710,150.0,9.609e-05,2]
[398879612,1765959275643,150.0,9.609e-05,2]
[398879613,1765959290593,150.0,9.609e-05,2]
[398879614,1765959306575,150.0,9.609e-05,2]
[398879615,1765959307175,150.0,8.425e-05,2]
[398879616,1765959307581,150.0,9.19e-05,2]
[398879617,1765959321639,150.0,9.609e-05,2]
[398879618,1765959336984,150.0,9.609e-05,2]
[398879619,1765959351626,150.0,9.609e-05,2]
[398879620,1765959367023,150.0,9.609e-05,2]
[398879621,1765959382165,150.0,9.609e-05,2]
[398879622,1765959397170,150.0,9.609e-05,2]
[398879623,1765959412008,150.0,9.609e-05,2]
[398879624,1765959421211,150.0,9.609e-05,2]
[398879636,1765959437703,150.0,7.737e-05,2]
[398879677,1765959633478,150.0,7.719e-05,2]
[398879700,1765959958865,150.0,7.726e-05,2]
[398879702,1765959990215,150.02,9.606e-05,2]
[398879705,1765960046121,-225.32689568,9.753e-05,2]
[398879706,1765960046142,-225.32689568,9.852e-05,2]
[398879707,1765960046163,-155.9,0.0001,2]
[398879708,1765960046184,-155.9,0.000107,2]
[398879709,1765960046206,-155.9,0.000114,2]
[398879710,1765960046227,-265.8857369,0.00011852,2]
[398879711,1765960046249,-155.9,0.000121,2]
[398879712,1765960046271,-155.9,0.000127,2]
[398879713,1765960046289,-250.8023188,0.0001297,2]
[398879714,1765960046310,-155.9,0.000134,2]
[398879715,1765960046330,-239.05169435,0.00013464,2]
[398879716,1765960046351,-65.86634727,0.00013699,2]
[398879719,1765960165353,-155.92,0.0001,2]
[398879720,1765960165374,-248.80320937,0.000104,2]
[398879721,1765960165394,-3026.83036102,0.000114,2]
[398879722,1765960170124,-81.64523864,0.000114,2]